bitfinex-derivatives/quotes_BNBF0:USTF0_20250510
["timestamp","ask_amount","ask_price","bid_price","bid_amount"]
[1746842852744,0.24545613,673.15,672.49,1.48821422]
[1746842852945,0.24545613,673.15,672.5,1.48821422]
[1746842853145,0.24545613,673.15,672.51,1.78571117]
[1746842853347,0.405,673.16,672.52,1.48821422]
[1746842853547,0.405,673.16,672.53,0.55952682]
[1746842853748,0.405,673.16,672.54,1.78559438]
[1746842853951,0.405,673.16,672.55,1.48809743]
[1746842854150,0.405,673.16,672.56,1.48809743]
[1746842854353,0.405,673.16,672.57,0.85702377]
[1746842854649,0.405,673.16,672.58,1.48804114]
[1746842854857,0.405,673.16,672.59,0.55952682]
[1746842855053,0.405,673.16,672.6,0.85702377]
[1746842855253,0.405,673.16,672.6,0.29749695]
[1746842855455,0.405,673.16,672.3,0.442]
[1746842855653,0.405,673.16,672.31,1.48824743]
[1746842855955,0.405,673.16,672.32,1.7856482]
[1746842856150,0.405,673.16,672.33,1.48824743]
[1746842856348,0.405,673.16,672.34,1.7856482]
[1746842856549,0.405,673.16,672.35,1.7856482]
[1746842856752,0.405,673.16,672.36,1.48824743]
[1746842856950,0.405,673.16,672.37,1.48824743]
[1746842857154,0.405,673.16,672.38,0.92852222]
[1746842857351,0.405,673.16,672.39,1.78559246]
[1746842857654,0.405,673.16,672.4,1.48819169]
[1746842857854,0.405,673.16,672.41,1.78559246]
[1746842858049,0.405,673.16,672.42,1.48819169]
[1746842858255,0.405,673.16,672.43,1.48819169]
[1746842858453,0.405,673.16,672.44,1.48819169]
[1746842858649,0.405,673.16,672.45,0.85707024]
[1746842858855,0.405,673.16,672.46,0.55966947]
[1746842859054,0.405,673.16,672.47,0.29740077]
[1746842859657,0.405,673.16,672.48,0.29740077]
[1746842860155,0.405,673.16,672.49,0.29740077]
[1746842860955,0.405,673.16,672.5,0.29740077]
[1746842861351,0.405,673.16,672.51,0.29740077]
[1746842861852,0.405,673.16,672.52,0.29740077]
[1746842862357,0.405,673.16,672.53,0.29740077]
[1746842863057,0.405,673.16,672.54,0.82240077]
[1746842863457,0.405,673.16,672.54,0.525]
[1746842863757,0.29709735,673.18,672.54,0.525]
[1746842864058,0.2450788,673.15,672.54,0.525]
[1746842864257,0.2450788,673.17,672.54,0.525]
[1746842865359,0.29709735,673.18,672.54,0.525]
[1746842866059,0.24505333,673.17,672.54,0.525]
[1746842866457,0.24505333,673.17,672.55,0.2974041]
[1746842866858,0.24505333,673.17,672.56,0.2974041]
[1746842867058,0.498,673.16,672.56,0.2974041]
[1746842867254,0.498,673.16,672.57,0.2974041]
[1746842867459,0.24505333,673.15,672.57,0.2974041]
[1746842867760,0.24505333,673.15,672.58,0.2974041]
[1746842868062,0.24505333,673.15,672.59,0.2974041]
[1746842868458,0.24505333,673.15,672.6,0.2974041]
[1746842868961,0.24505333,673.15,672.61,0.2974041]
[1746842869857,0.24505333,673.15,672.62,0.2974041]
[1746842870658,0.24505333,673.15,672.63,0.2974041]
[1746842871266,0.24505333,673.15,672.64,0.2974041]
[1746842871760,0.24505333,673.15,672.65,0.2974041]
[1746842872162,0.24505333,673.15,672.66,0.2974041]
[1746842872667,0.24505333,673.15,672.67,0.2974041]
[1746842872868,0.24505333,673.15,672.6,0.502]
[1746842873068,0.24505333,673.15,672.61,0.55995538]
[1746842873270,0.24505333,673.15,672.62,0.85733061]
[1746842873469,0.24505333,673.15,672.63,0.55995538]
[1746842873669,0.24505333,673.15,672.64,0.55995538]
[1746842873870,0.24505333,673.15,672.65,0.29737523]
[1746842874470,0.24505333,673.15,672.6,0.502]
[1746842874471,0.24505333,673.15,672.66,0.29737523]
[1746842875071,0.24505333,673.15,672.67,0.85772621]
[1746842875274,0.24505333,673.15,672.68,0.56035098]
[1746842875571,0.24505333,673.15,672.69,0.56035098]
[1746842875767,0.24505333,673.15,672.7,0.85772621]
[1746842876067,0.24505333,673.15,672.71,0.56035098]
[1746842876267,0.24505333,673.15,672.72,0.56035098]
[1746842876465,0.24505333,673.15,672.73,0.85772621]
[1746842876671,0.24505333,673.15,672.73,0.29737523]
[1746842876972,0.24505333,673.15,672.74,0.66537523]
[1746842877371,0.24505333,673.15,672.75,0.29737523]
[1746842877873,0.24505333,673.15,672.74,0.368]
[1746842879473,0.24505333,673.17,672.74,0.368]
[1746842882776,0.518,673.16,672.74,0.368]
[1746842883172,0.24505333,673.15,672.74,0.368]
[1746842884778,0.24505333,673.15,672.75,0.56132066]
[1746842884978,0.24505333,673.15,672.74,0.368]
[1746842885278,0.518,673.16,672.75,0.85863243]
[1746842885479,0.518,673.16,672.75,0.29731587]
[1746842885778,0.518,673.16,672.76,0.85862598]
[1746842885975,0.518,673.16,672.76,0.29731587]
[1746842886173,0.518,673.16,672.77,0.29731587]
[1746842886874,0.518,673.16,672.78,0.29731587]
[1746842887374,0.518,673.16,672.79,0.29731587]
[1746842887879,0.518,673.16,672.74,0.368]
[1746842887880,0.518,673.16,672.8,0.29731587]
[1746842888280,0.518,673.16,672.74,0.368]
[1746842888975,0.518,673.16,672.75,0.29734476]
[1746842889477,0.518,673.16,672.74,0.368]
[1746842890674,0.518,673.16,672.75,0.29734359]
[1746842891182,0.518,673.16,672.74,0.368]
[1746842891874,0.518,673.16,672.75,0.29734336]
[1746842892685,0.518,673.16,672.74,0.368]
[1746842893978,0.518,673.16,672.6,0.502]
[1746842894181,0.518,673.16,672.75,0.29734359]
[1746842894676,0.518,673.16,672.6,0.502]
[1746842894877,0.518,673.16,672.61,1.49053938]
[1746842895080,0.518,673.16,672.62,1.49053938]
[1746842895279,0.518,673.16,672.63,1.49053938]
[1746842895481,0.518,673.16,672.64,1.49053938]
[1746842895777,0.518,673.16,672.65,1.49085636]
[1746842895976,0.518,673.16,672.66,1.24203412]
[1746842896285,0.518,673.16,672.67,0.56169098]
[1746842896484,0.518,673.16,672.68,0.85903412]
[1746842896782,0.518,673.16,672.69,0.56169098]
[1746842896982,0.518,673.16,672.7,0.85903412]
[1746842897176,0.518,673.16,672.71,0.56169098]
[1746842897378,0.518,673.16,672.72,0.5626353]
[1746842897578,0.518,673.16,672.73,0.5626353]
[1746842897879,0.518,673.16,672.74,0.5626353]
[1746842898077,0.518,673.16,672.75,0.5626353]
[1746842898282,0.518,673.16,672.76,0.85997844]
[1746842898482,0.518,673.16,672.77,0.5626353]
[1746842898778,0.518,673.16,672.78,0.85997844]
[1746842898985,0.518,673.16,672.79,0.5626353]
[1746842899184,0.518,673.16,672.8,0.5626353]
[1746842899382,0.518,673.16,672.81,0.5626353]
[1746842899579,0.518,673.16,672.82,0.5626353]
[1746842899783,0.518,673.16,672.83,0.5626353]
[1746842899981,0.518,673.16,672.66,0.383]
[1746842900284,0.518,673.16,672.67,1.79335213]
[1746842900481,0.518,673.16,672.68,1.49600466]
[1746842900787,0.518,673.16,672.69,1.79335213]
[1746842900985,0.518,673.16,672.7,1.79381432]
[1746842901183,0.518,673.16,672.71,1.49646685]
[1746842901379,0.518,673.16,672.72,1.79381432]
[1746842901583,0.518,673.16,672.73,1.49646685]
[1746842901786,0.518,673.16,672.74,1.49646685]
[1746842901985,0.518,673.16,672.75,1.79381432]
[1746842902185,0.518,673.16,672.76,1.49646685]
[1746842902384,0.518,673.16,672.77,1.79381432]
[1746842902582,0.518,673.16,672.78,0.56382238]
[1746842902781,0.518,673.16,672.79,0.5642347]
[1746842902987,0.518,673.16,672.8,0.5642347]
[1746842903182,0.518,673.16,672.81,0.86158217]
[1746842903382,0.518,673.16,672.82,0.5642347]
[1746842903685,0.518,673.16,672.83,0.5642347]
[1746842903881,0.518,673.16,672.84,0.86158217]
[1746842904086,0.518,673.16,672.85,0.5642347]
[1746842904281,0.518,673.16,672.86,0.5642347]
[1746842904481,0.518,673.16,672.87,0.5642347]
[1746842904687,0.518,673.16,672.66,0.383]
[1746842904888,0.518,673.16,672.67,1.49868691]
[1746842905088,0.518,673.16,672.68,0.56436756]
[1746842905388,0.518,673.16,672.69,0.86176216]
[1746842905587,0.518,673.16,672.7,0.56436756]
[1746842905780,0.29709735,673.18,672.71,0.86176216]
[1746842905985,0.24506506,673.15,672.72,0.56436756]
[1746842906182,0.24506506,673.15,672.71,0.2973946]
[1746842906382,0.24506506,673.17,672.72,0.56437154]
[1746842906586,0.24506506,673.17,672.73,0.56437154]
[1746842906786,0.24506506,673.17,672.66,0.383]
[1746842907082,0.24506506,673.17,672.67,0.56436631]
[1746842907386,0.24506506,673.17,672.68,0.56436631]
[1746842907683,0.24506506,673.17,672.69,0.56436631]
[1746842907882,0.24506506,673.17,672.7,0.56436631]
[1746842908085,0.24506506,673.17,672.71,0.56436631]
[1746842908289,0.24506506,673.17,672.66,0.383]
[1746842908480,0.24506506,673.17,672.67,0.56428532]
[1746842908685,0.37,673.16,672.68,0.56428532]
[1746842908984,0.24506506,673.15,672.69,0.56428532]
[1746842909183,0.24506506,673.15,672.7,0.56428154]
[1746842909386,0.24506506,673.15,672.66,0.383]
[1746842909588,0.24506506,673.15,672.67,0.56425518]
[1746842909789,0.24506506,673.15,672.68,0.56425518]
[1746842909990,0.24506506,673.15,672.66,0.383]
[1746842910190,0.24506506,673.15,672.67,0.56426472]
[1746842910389,0.24506506,673.15,672.68,0.56426472]
[1746842910589,0.24506506,673.15,672.66,0.383]
[1746842914096,0.24506506,673.15,672.67,0.56406148]
[1746842914290,0.24506506,673.15,672.68,0.56406148]
[1746842914493,0.37,673.16,672.69,0.56406148]
[1746842914694,0.37,673.16,672.7,0.86146359]
[1746842914894,0.37,673.16,672.71,0.56406148]
[1746842915193,0.37,673.16,672.72,0.56406148]
[1746842915394,0.37,673.16,672.73,0.56406148]
[1746842915594,0.37,673.16,672.74,0.56406148]
[1746842915791,0.37,673.16,672.75,0.56406148]
[1746842915994,0.37,673.16,672.66,0.383]
[1746842916291,0.37,673.16,672.67,0.86140989]
[1746842916494,0.37,673.16,672.68,0.56401714]
[1746842916694,0.37,673.16,672.69,0.86140989]
[1746842916894,0.37,673.16,672.7,0.56401714]
[1746842917094,0.37,673.16,672.71,0.56401714]
[1746842917389,0.37,673.16,672.72,0.56401714]
[1746842917590,0.37,673.16,672.73,0.56401714]
[1746842917791,0.37,673.16,672.74,0.56401714]
[1746842917991,0.37,673.16,672.66,0.383]
[1746842918193,0.37,673.16,672.67,0.56404612]
[1746842918393,0.37,673.16,672.68,0.56404612]
[1746842918595,0.37,673.16,672.69,0.56404612]
[1746842918797,0.37,673.16,672.7,0.56404612]
[1746842918998,0.37,673.16,672.71,0.56404612]
[1746842919199,0.24512036,673.15,672.72,0.56404612]
[1746842919497,0.24512036,673.15,672.73,0.56404612]
[1746842919697,0.24512036,673.15,672.74,0.56404612]
[1746842919899,0.24512036,673.15,672.66,0.383]
[1746842920098,0.24512036,673.15,672.67,0.56408661]
[1746842920299,0.24512036,673.15,672.68,0.56408661]
[1746842920598,0.24512036,673.15,672.69,0.56408661]
[1746842920798,0.24512036,673.15,672.7,0.86148034]
[1746842920999,0.24512036,673.15,672.71,0.56408661]
[1746842921193,0.24512036,673.15,672.72,0.56408661]
[1746842921395,0.24512036,673.15,672.73,0.56408661]
[1746842921699,0.24512036,673.15,672.66,0.383]
[1746842923399,0.24512036,673.15,672.67,0.56411382]
[1746842923595,0.24512036,673.15,672.68,0.56411382]
[1746842923801,0.24512036,673.15,672.69,0.56411382]
[1746842924100,0.24512036,673.15,672.7,0.56410306]
[1746842924301,0.24512036,673.15,671.45,0.9336209]
[1746842924501,0.24512036,673.15,672.6,0.498]
[1746842924701,0.24512036,673.15,672.61,0.86151742]
[1746842924895,0.24512036,673.15,672.62,0.56410621]
[1746842925098,0.24512036,673.15,672.63,0.86151742]
[1746842925300,0.24512036,673.15,672.64,0.56410621]
[1746842925499,0.24512036,673.15,672.65,0.56410621]
[1746842925699,0.24512036,673.15,672.66,0.56410621]
[1746842925900,0.24512036,673.15,672.67,0.56410621]
[1746842926097,0.24512036,673.15,672.68,0.56410621]
[1746842926300,0.24512036,673.15,672.69,0.56410621]
[1746842926602,0.24512036,673.15,672.7,0.56410621]
[1746842926802,0.24512036,673.15,672.7,0.437]
[1746842927697,0.37,673.16,672.7,0.437]
[1746842928503,0.24510451,673.15,672.7,0.437]
[1746842928801,0.24510451,673.15,672.71,0.56399586]
[1746842929098,0.24510451,673.15,672.7,0.437]
[1746842929296,0.24510451,673.15,672.71,0.56399538]
[1746842929498,0.24510451,673.15,672.7,0.437]
[1746842929703,0.24510451,673.15,672.71,0.56398744]
[1746842929897,0.24510451,673.15,672.7,0.437]
[1746842930903,0.24510451,673.17,672.7,0.437]
[1746842932006,0.24510451,673.17,672.71,0.56397509]
[1746842932204,0.24510451,673.17,672.7,0.437]
[1746842932600,0.24510451,673.17,672.71,0.56397303]
[1746842932799,0.24510451,673.17,672.7,0.437]
[1746842933104,0.24510451,673.42,672.71,0.56397193]
[1746842933299,0.24510451,673.42,672.7,0.437]
[1746842933502,0.24510451,673.42,672.71,0.56396793]
[1746842933803,0.24510451,673.42,672.7,0.437]
[1746842934104,0.24510451,673.42,672.71,0.56396742]
[1746842934307,0.24510451,673.42,672.7,0.437]
[1746842934503,0.354,673.41,672.71,0.56396374]
[1746842934702,0.354,673.41,672.7,0.437]
[1746842934903,0.24510451,673.4,672.71,0.56396314]
[1746842935102,0.24510451,673.4,672.7,0.437]
[1746842935301,0.24510451,673.4,672.71,0.56395179]
[1746842935600,0.24510451,673.4,672.7,0.437]
[1746842935804,0.24510451,673.4,672.71,0.5639671]
[1746842936002,0.24510451,673.4,672.72,0.5639671]
[1746842936301,0.24510451,673.4,672.73,0.8613328]
[1746842936506,0.24510451,673.4,672.74,0.5639671]
[1746842936702,0.24510451,673.4,672.75,0.5639671]
[1746842936906,0.24510451,673.4,672.76,0.8613328]
[1746842937106,0.24510451,673.4,672.77,0.5639671]
[1746842937307,0.24510451,673.4,672.78,0.5639671]
[1746842937509,0.24510451,673.4,672.79,0.5639671]
[1746842937707,0.24510451,673.4,672.8,0.5639671]
[1746842937908,0.24510451,673.4,672.7,0.437]
[1746842938103,0.24510451,673.4,672.71,0.56396702]
[1746842938303,0.24510451,673.4,672.72,0.8613336]
[1746842938608,0.24510451,673.4,672.73,0.56396702]
[1746842938813,0.24510451,673.4,672.74,0.8613336]
[1746842939011,0.24510451,673.4,672.75,0.56396702]
[1746842939213,0.24510451,673.4,672.76,0.56396702]
[1746842939413,0.24510451,673.4,672.77,0.56396702]
[1746842939716,0.24510451,673.4,672.78,0.56396702]
[1746842940009,0.24510451,673.4,672.79,0.56396702]
[1746842940313,0.24510451,673.4,672.8,0.56396702]
[1746842940514,0.24510451,673.4,672.7,0.437]
[1746842940808,0.24510451,673.4,672.71,0.56400362]
[1746842941014,0.24510451,673.4,672.72,0.56400362]
[1746842941206,0.24510451,673.4,672.73,0.56400362]
[1746842941410,0.24510451,673.4,672.74,0.86137063]
[1746842941608,0.24510451,673.4,672.75,0.5640175]
[1746842941916,0.24510451,673.4,672.76,0.5640175]
[1746842942108,0.24510451,673.4,672.77,0.5640175]
[1746842942312,0.24510451,673.4,672.7,0.437]
[1746842942508,0.24510451,673.4,672.71,0.86144379]
[1746842942706,0.24510451,673.4,672.72,0.56406461]
[1746842942911,0.24510451,673.4,672.73,0.56406461]
[1746842943110,0.24510451,673.4,672.74,0.56406461]
[1746842943309,0.24510451,673.4,672.75,0.56406461]
[1746842943513,0.24510451,673.4,672.76,0.56406461]
[1746842943710,0.2970047,673.39,672.73,0.29737918]
[1746842943911,0.2970047,673.39,672.7,0.437]
[1746842944515,0.2970047,673.39,672.71,0.501]
[1746842944716,0.50363902,673.38,672.71,0.501]
[1746842944910,0.29701352,673.37,672.71,0.501]
[1746842945108,0.54199341,673.37,672.71,0.501]
[1746842945409,0.24497989,673.36,672.71,0.501]
[1746842947519,0.25857073,673.35,672.71,0.501]
[1746842947919,0.29702676,673.34,672.71,0.501]
[1746842948120,0.54200665,673.34,672.71,0.501]
[1746842948317,0.24497989,673.33,672.71,0.501]
[1746842949815,0.29703558,673.32,672.71,0.501]
[1746842950215,0.24514151,673.31,672.71,0.501]
[1746842950520,0.421,673.3,672.71,0.501]
[1746842950919,0.24514151,673.29,672.71,0.501]
[1746842953219,0.24514151,673.29,672.72,0.56406455]
[1746842953421,0.24514151,673.29,672.71,0.501]
[1746842953422,0.421,673.3,672.73,0.56406455]
[1746842953621,0.421,673.3,672.74,0.56406455]
[1746842953818,0.24523711,673.29,672.75,0.56406455]
[1746842954022,0.24523711,673.29,672.76,0.56406455]
[1746842954218,0.24523711,673.29,672.71,0.501]
[1746842954425,0.24523711,673.29,672.72,0.56411841]
[1746842954625,0.24523711,673.29,672.73,0.56411841]
[1746842954819,0.24523711,673.29,672.74,0.56411841]
[1746842955019,0.24523711,673.29,672.75,0.56411841]
[1746842955319,0.24523711,673.29,672.76,0.56411841]
[1746842955521,0.24523711,673.29,672.77,0.56411841]
[1746842955724,0.24523711,673.29,672.71,0.501]
[1746842955919,0.24523711,673.29,672.72,0.56415784]
[1746842956119,0.24523711,673.29,672.73,0.56415784]
[1746842956322,0.24523711,673.29,672.74,0.86153931]
[1746842956525,0.24523711,673.29,672.75,0.56415784]
[1746842956824,0.24523711,673.29,672.76,0.56415784]
[1746842957025,0.24523711,673.29,672.77,0.56415784]
[1746842957222,0.24523711,673.29,672.71,0.501]
[1746842957423,0.24523711,673.29,672.72,0.86160229]
[1746842957620,0.421,673.3,672.73,1.4982551]
[1746842957823,0.421,673.3,672.74,0.56422651]
[1746842958124,0.421,673.3,672.75,0.56422651]
[1746842958323,0.421,673.3,672.76,0.56422651]
[1746842958524,0.421,673.3,672.77,0.56422651]
[1746842958823,0.421,673.3,672.78,0.56422651]
[1746842959021,0.421,673.3,672.79,0.86160229]
[1746842959224,0.421,673.3,672.8,0.56422651]
[1746842959427,0.421,673.3,672.81,0.56422651]
[1746842959624,0.421,673.3,672.82,0.56422651]
[1746842959825,0.421,673.3,672.83,0.56422651]
[1746842960026,0.421,673.3,672.74,0.385]
[1746842960226,0.421,673.3,672.75,0.56420676]
[1746842960427,0.421,673.3,672.76,0.86155581]
[1746842960623,0.421,673.3,672.74,0.385]
[1746842966135,0.421,673.3,672.75,0.529]
[1746842969033,0.2451957,673.29,672.75,0.529]
[1746842971840,0.421,673.3,672.75,0.529]
[1746842972040,0.24519215,673.29,672.75,0.529]
[1746842975439,0.24519215,673.31,672.75,0.529]
[1746842976841,0.29703558,673.32,672.75,0.529]
[1746842977146,0.24515851,673.31,672.75,0.529]
[1746842978143,0.473,673.3,672.75,0.529]
[1746842978649,0.24515851,673.29,672.75,0.529]
[1746842978849,0.24515851,673.29,672.76,0.56488725]
[1746842979150,0.24515851,673.29,672.77,0.56488725]
[1746842979449,0.24515851,673.29,672.78,0.56488725]
[1746842979645,0.24515851,673.29,672.79,0.56488725]
[1746842979851,0.24515851,673.29,672.8,0.56488725]
[1746842980050,0.24515851,673.29,672.75,0.529]
[1746842980251,0.24515851,673.29,672.76,0.56480642]
[1746842980546,0.24515851,673.29,672.75,0.529]
[1746842980745,0.24515851,673.29,672.76,0.56487267]
[1746842980945,0.24515851,673.29,672.75,0.529]
[1746842981146,0.24515851,673.29,672.76,0.56487507]
[1746842981343,0.24515851,673.29,672.75,0.529]
[1746842981548,0.24515851,673.29,672.76,0.56482096]
[1746842981748,0.24515851,673.29,672.75,0.529]
[1746842981952,0.24515851,673.29,672.76,0.56482096]
[1746842982151,0.24515851,673.29,672.75,0.529]
[1746842982352,0.24515851,673.29,672.76,0.56483185]
[1746842982553,0.24515851,673.29,672.75,0.529]
[1746842982753,0.24515851,673.29,672.76,0.56485392]
[1746842982953,0.24515851,673.29,672.75,0.529]
[1746842983154,0.24515851,673.29,672.76,0.5648537]
[1746842983453,0.24515851,673.29,672.75,0.529]
[1746842983655,0.24515851,673.29,672.76,0.56487251]
[1746842983953,0.24515851,673.29,672.75,0.529]
[1746842984154,0.24515851,673.29,672.76,0.56487322]
[1746842984454,0.24515851,673.29,672.74,0.385]
[1746842984649,0.24515851,673.29,672.75,0.56487671]
[1746842984850,0.24515851,673.29,672.76,0.56487671]
[1746842985053,0.24515851,673.29,672.74,0.385]
[1746842986954,0.24515851,673.29,672.25,0.25865144]
[1746842987154,0.24515851,673.29,672.26,1.7972547]
[1746842987351,0.24515851,673.29,672.27,1.49983038]
[1746842987551,0.24515851,673.29,672.28,1.49983038]
[1746842987753,0.24515851,673.29,672.29,1.49983038]
[1746842987953,0.24515851,673.29,672.3,1.499799]
[1746842988156,0.24515851,673.29,672.31,1.499799]
[1746842988450,0.24515851,673.29,672.32,1.79722332]
[1746842988655,0.24515851,673.29,672.33,1.499799]
[1746842988856,0.24515851,673.29,672.34,1.499799]
[1746842989056,0.24515851,673.29,672.35,1.499799]
[1746842989253,0.24515851,673.29,672.36,1.49977394]
[1746842989453,0.24515851,673.29,672.37,1.79719826]
[1746842989654,0.24515851,673.29,672.38,1.49977394]
[1746842989854,0.24515851,673.29,672.39,1.49977394]
[1746842990050,0.24515851,673.29,672.4,1.79719826]
[1746842990354,0.24515851,673.29,672.41,1.49977394]
[1746842990555,0.24515851,673.29,672.42,1.49977394]
[1746842990857,0.473,673.3,672.43,1.49977394]
[1746842991055,0.473,673.3,672.44,1.79719826]
[1746842991256,0.473,673.3,672.45,1.79719826]
[1746842991456,0.24517555,673.29,672.46,1.49977394]
[1746842991655,0.24517555,673.29,672.47,1.49977394]
[1746842991958,0.24517555,673.29,672.48,1.79719826]
[1746842992153,0.24517555,673.29,672.49,1.49977394]
[1746842992351,0.24517555,673.29,672.5,1.79719826]
[1746842992558,0.24517555,673.31,672.51,1.49977394]
[1746842992755,0.24517555,673.31,672.52,1.49977394]
[1746842992957,0.24517555,673.31,672.53,1.49977394]
[1746842993153,0.24517555,673.31,672.54,1.79719826]
[1746842993358,0.24517555,673.31,672.55,1.49970708]
[1746842993559,0.24517555,673.31,672.56,1.49970708]
[1746842993755,0.24517555,673.31,672.57,1.7971314]
[1746842993955,0.24517555,673.31,672.58,1.49970708]
[1746842994154,0.24517555,673.31,672.59,0.56490475]
[1746842994354,0.24517555,673.31,672.6,0.56490475]
[1746842994556,0.24517555,673.31,672.61,1.49967713]
[1746842994752,0.24517555,673.31,672.62,1.79710145]
[1746842994955,0.24517555,673.31,672.63,1.49967713]
[1746842995159,0.474,673.3,672.64,1.79695768]
[1746842995363,0.24517555,673.29,672.65,1.49953336]
[1746842995660,0.24517555,673.29,672.66,1.49953336]
[1746842995858,0.24517555,673.29,672.67,1.49953336]
[1746842996054,0.24517555,673.29,672.68,1.49953336]
[1746842996354,0.24517555,673.29,672.69,1.49953336]
[1746842996558,0.24517555,673.29,672.7,1.79695768]
[1746842996754,0.24517555,673.29,672.71,0.56490475]
[1746842997060,0.24517555,673.29,672.72,0.56475874]
[1746842997260,0.24517555,673.29,672.73,1.49928259]
[1746842997456,0.24517555,673.29,672.74,1.49928259]
[1746842997656,0.24517555,673.29,672.75,1.79670691]
[1746842997859,0.24517555,673.29,672.76,0.56475874]
[1746842998162,0.24517555,673.29,672.77,0.86218306]
[1746842998361,0.24517555,673.29,672.78,0.86218306]
[1746842998562,0.24517555,673.29,672.79,0.56475874]
[1746842998763,0.24517555,673.29,672.8,0.56475874]
[1746842999064,0.24517555,673.29,672.81,0.56475874]
[1746842999257,0.24517555,673.29,672.82,0.56475874]
[1746842999461,0.24517555,673.29,672.83,0.56475874]
[1746842999757,0.24517555,673.29,672.84,0.56475874]
[1746842999961,0.24517555,673.29,672.85,0.56475874]
[1746843000163,0.474,673.3,672.86,0.56475874]
[1746843000359,0.474,673.3,672.82,0.29742432]
[1746843000561,0.24521648,673.29,672.83,0.56468038]
[1746843000758,0.24521648,673.29,672.84,0.56468038]
[1746843000960,0.24521648,673.29,672.85,0.56468038]
[1746843001160,0.24521648,673.29,672.86,0.56468038]
[1746843001361,0.24521648,673.29,672.34,0.526]
[1746843001559,0.24521648,673.29,672.35,1.79659248]
[1746843001865,0.24521648,673.29,672.38,0.25851406]
[1746843002064,0.24521648,673.29,672.39,1.49923107]
[1746843002266,0.24521648,673.29,672.4,1.79659248]
[1746843002458,0.24521648,673.29,672.41,1.49923107]
[1746843002662,0.24521648,673.29,672.42,1.79659248]
[1746843002859,0.24521648,673.29,672.43,1.49923107]
[1746843003063,0.24521648,673.29,672.44,1.49923107]
[1746843003260,0.24521648,673.29,672.45,1.49923107]
[1746843003461,0.24521648,673.29,672.46,1.49923107]
[1746843003663,0.24521648,673.29,672.47,1.79659248]
[1746843003860,0.24521648,673.29,672.48,1.49923107]
[1746843004059,0.24521648,673.29,672.49,1.79659248]
[1746843004262,0.24521648,673.29,672.5,1.49923107]
[1746843004462,0.24521648,673.29,672.51,1.49923107]
[1746843004661,0.24521648,673.29,672.52,1.79659248]
[1746843004861,0.24521648,673.29,672.53,1.49923107]
[1746843005062,0.24521648,673.29,672.54,1.49892513]
[1746843005262,0.24521648,673.29,672.55,1.79628654]
[1746843005565,0.24521648,673.29,672.56,1.49892513]
[1746843005761,0.474,673.3,672.57,1.49892513]
[1746843005963,0.474,673.3,672.58,1.49892513]
[1746843006165,0.474,673.3,672.59,1.49892513]
[1746843006366,0.474,673.3,672.6,1.49892513]
[1746843006566,0.474,673.3,672.61,1.49892513]
[1746843006769,0.474,673.3,672.62,1.49892513]
[1746843006961,0.474,673.3,672.63,1.79628654]
[1746843007163,0.474,673.3,672.64,1.49892513]
[1746843007366,0.474,673.3,672.65,1.49892513]
[1746843007666,0.474,673.3,672.66,1.49892513]
[1746843007864,0.474,673.3,672.67,1.49892513]
[1746843008164,0.474,673.3,672.68,1.79628654]
[1746843008365,0.474,673.3,672.69,1.49892513]
[1746843008566,0.474,673.3,672.7,1.49892513]
[1746843008768,0.474,673.3,672.71,1.49892513]
[1746843008966,0.474,673.3,672.72,1.49892513]
[1746843009166,0.474,673.3,672.73,1.79628654]
[1746843009462,0.474,673.3,672.74,1.49892513]
[1746843009662,0.474,673.3,672.75,1.79628654]
[1746843009869,0.474,673.3,672.76,0.56437659]
[1746843010067,0.474,673.3,672.75,0.29736141]
[1746843010068,0.474,673.3,672.77,0.56437659]
[1746843010364,0.474,673.3,672.78,0.56432508]
[1746843010562,0.474,673.3,672.79,0.56432508]
[1746843010764,0.474,673.3,672.8,0.86168649]
[1746843010965,0.474,673.3,672.81,0.56432508]
[1746843011163,0.474,673.3,672.8,0.29736141]
[1746843011367,0.24568926,673.29,672.34,0.526]
[1746843011572,0.24568926,673.29,672.35,1.4998897]
[1746843011767,0.24568926,673.29,672.36,1.4998897]
[1746843011968,0.24568926,673.29,672.37,1.79733452]
[1746843012263,0.24568926,673.29,672.38,1.50000444]
[1746843012465,0.24568926,673.29,672.39,1.50000444]